[Event "British Championship 2024"]
[Site "Hull"]
[Date "2024.07.31"]
[Round "5.4"]
[White "Golding, Alex"]
[Black "Howell, David W L"]
[Result "0-1"]
[Annotator "TA"]
[ECO "A47"]
[WhiteElo "2296"]
[BlackElo "2675"]
[PlyCount "74"]
[EventDate "2024.07.31"]
[EventCountry "GBR"]
[SourceTitle "playchess.com"]
[Source "ChessBase"]
[SourceQuality "1"]
[TimeControl "40/5400+30:1800+30"]

{[%evp 9,74,25,13,14,15,15,22,19,20,20,23,15,34,12,19,6,18,10,0,0,3,-1,0,0,0,-28,-14,-29,-30,-34,-24,-26,-33,-70,-67,-96,-54,-68,-64,-143,-144,-137,-133,-153,-135,-201,-197,-264,-256,-274,-260,-293,-287,-285,-281,-314,-321,-544,-408,-529,-320,-676,-462,-790,-797,-770,-733]} 1. d4 {[%emt 0:00:03]} Nf6 {[%emt 0:02:33]} 2. Nf3 {[%emt 0:00:06]} b6 {[%emt 0:01:24]} 3. Bf4 {[%emt 0:00:14]} Bb7 {[%emt 0:00:30]} 4. e3 {[%emt 0:00:31]} g6 {[%emt 0:06:04]} 5. c4 {[%emt 0:00:26]} Bg7 {[%emt 0:00:05]} 6. Nc3 {[%emt 0:00:07]} O-O {[%emt 0:00:14]} 7. Bd3 {[%emt 0:00:25]} d6 {[%emt 0:03:40]} 8. O-O {[%emt 0:00:37] The position is equal.} Nbd7 {[%emt 0:09:04]} 9. Bg5 {[%emt 0:02:54]} h6 {[%emt 0:01:53]} 10. Bh4 {[%emt 0:00:04]} e5 {[%emt 0:14:30]} 11. Nd2 {[%emt 0:03:10]} exd4 {[%emt 0:08:36]} 12. exd4 {[%emt 0:00:06]} Re8 {[%emt 0:00:05]} 13. Rc1 {[%emt 0:06:31]} a6 {[%emt 0:03:13]} 14. a4 {[%emt 0:02:30]} Qb8 {[%emt 0:05:30]} 15. f3 {[%emt 0:01:03]} Nh5 {[%emt 0:04:18]} 16. Nb3 {[%emt 0:01:03]} c5 {[%emt 0:05:46]} 17. d5 {[%emt 0:05:44]} Nf4 {[%emt 0:02:45]} 18. Bg3 {[%emt 0:02:18]} Nxd3 {[%emt 0:01:48]} 19. Qxd3 {[%emt 0:00:08]} Bc8 {[%emt 0:01:34]} 20. Nd2 {[%emt 0:26:15]} Ne5 {[%emt 0:00:48]} 21. Bxe5 {[%emt 0:00:42]} Rxe5 {[%emt 0:02:40]} 22. Kh1 {[%emt 0:00:57]} Ra7 {[%emt 0:03:46]} 23. Rce1 {[%emt 0:03:16]} Rae7 {[%emt 0:00:27]} 24. Qb1 {[%emt 0:00:36]} (24. Rxe5 $15 Bxe5 (24... Rxe5 25. g4 $15) 25. Re1) 24... Bd7 $17 {[%emt 0:01:08]} 25. Rxe5 {[%emt 0:00:47]} Bxe5 {[%emt 0:03:11]} 26. Qc2 {[%emt 0:01:33]} Bg7 {[%emt 0:01:58]} 27. b3 {[%emt 0:00:43]} (27. g4 $17) 27... Qe8 $19 {[%emt 0:03:46]} 28. Nce4 {[%emt 0:00:42] [#]} (28. h3 $142) 28... f5 $1 {[%emt 0:00:16]} 29. Nf2 {[%emt 0:00:59]} ({Of course not} 29. Nxd6 Qb8 30. N6e4 fxe4 31. Nxe4 Bf5) 29... Re2 {[%emt 0:01:40] White is weak on the dark squares} 30. Nd1 {[%emt 0:01:08] Inhibits Qe3.} g5 {[%emt 0:08:24]} 31. Qd3 {[%emt 0:00:38]} Re7 {[%emt 0:00:05]} 32. f4 {[%emt 0:01:55]} g4 {[%emt 0:00:12]} 33. h4 $2 {[%emt 0:03:47] [#]} (33. Qg3 {keeps fighting.}) 33... Bd4 {[%emt 0:02:03] White must now prevent ...Re2.} 34. Nb1 {[%emt 0:00:59]} Kf7 {[%emt 0:02:16]} 35. Na3 $2 {[%emt 0:00:33]} (35. Qg3) 35... Re2 {[%emt 0:00:38] Black is clearly winning.} 36. Nc2 {[%emt 0:00:59]} (36. Nb1 $142) 36... Qe4 {[%emt 0:00:08]} 37. Qxe4 {[%emt 0:00:39]} fxe4 {[%emt 0:00:09] Weighted Error Value: White=0.50/Black=0.21 (precise) .  Mistake:       	White=6     	---        Inaccurate:     	White=3     	Black=3      OK:         	White=11    	Black=17     Strong:       	---       	Black=1} ({Not} 37... Rxe4 38. Kh2 $11) 0-1

[Event "British Championship 2024"]
[Site "Hull"]
[Date "2024.07.31"]
[Round "5.5"]
[White "Adams, Michael"]
[Black "Salmons, Calum"]
[Result "1-0"]
[Annotator "TA"]
[ECO "B53"]
[WhiteElo "2670"]
[BlackElo "1999"]
[PlyCount "99"]
[EventDate "2024.07.31"]
[EventCountry "GBR"]
[SourceTitle "playchess.com"]
[Source "ChessBase"]
[SourceQuality "1"]
[TimeControl "40/5400+30:1800+30"]

{[%evp 9,99,4,11,7,0,0,0,0,0,0,0,3,0,0,0,0,0,0,0,14,0,0,0,0,0,5,47,0,27,44,43,0,0,0,0,8,16,27,22,54,69,82,91,70,173,166,243,241,240,245,236,236,231,231,525,476,468,460,431,355,322,341,485,471,572,467,475,466,481,435,639,641,633,637,627,623,592,529,516,517,863,858,912,831,920,898,1879,1489,29984,29985,29991,29992]} 1. e4 {[%emt 0:00:04]} c5 {[%emt 0:00:07]} 2. Nf3 {[%emt 0:00:10]} d6 {[%emt 0:00:05]} 3. Nc3 {[%emt 0:00:48]} Nf6 {[%emt 0:00:29]} 4. d4 {[%emt 0:00:15]} cxd4 {[%emt 0:00:16]} 5. Qxd4 {[%emt 0:00:13]} Nc6 {[%emt 0:02:31]} 6. Qe3 {[%emt 0:00:56]} g6 {[%emt 0:03:10]} 7. Bc4 {[%emt 0:00:12]} Bg7 {[%emt 0:01:40]} 8. h3 {[%emt 0:00:15] The position is equal.} O-O {[%emt 0:01:33]} 9. O-O {[%emt 0:00:12]} a6 {[%emt 0:04:07]} 10. a4 {[%emt 0:03:05]} Qc7 {[%emt 0:03:27]} 11. Qe2 {[%emt 0:04:35]} b6 {[%emt 0:10:19]} 12. Bg5 {[%emt 0:08:44]} Na5 {[%emt 0:03:06]} 13. Bd5 {[%emt 0:14:56]} Bb7 {[%emt 0:02:25]} 14. Bxb7 {[%emt 0:03:02]} Qxb7 {[%emt 0:01:11]} 15. Rad1 {[%emt 0:06:48]} Rac8 {[%emt 0:05:50][%cal Oc8c3]} 16. e5 {[%emt 0:02:08]} dxe5 {[%emt 0:00:45]} 17. Nxe5 {[%emt 0:00:04]} Rfd8 {[%emt 0:08:50]} 18. b4 {[%emt 0:16:57]} (18. Rxd8+ $14 {feels stronger.} Rxd8 19. Rd1 Rxd1+ 20. Qxd1) 18... Nc6 {[%emt 0:20:06] [#] Strongly threatening ...Nd4.} 19. Qf3 {[%emt 0:00:45][%cal Of3c6]} ({But not} 19. Nxc6 Qxc6 20. Rxd8+ (20. Qxe7 $2 Re8 $19) 20... Rxd8 $11) 19... h6 {[%emt 0:04:27]} 20. Bf4 {[%emt 0:14:59]} Re8 {[%emt 0:05:47]} 21. Nd5 {[%emt 0:04:01]} Nxd5 {[%emt 0:01:39]} 22. Qxd5 {[%emt 0:00:06]} e6 {[%emt 0:01:05]} 23. Qe4 {[%emt 0:03:06] aiming for Rd7.} Bxe5 {[%emt 0:06:09]} 24. Bxe5 {[%emt 0:00:06]} Qe7 {[%emt 0:00:17][%cal Oc6e5]} 25. Bd6 {[%emt 0:02:25] White is more active. White now steadily converts the win.} Qf6 {[%emt 0:00:20]} 26. c4 {[%emt 0:02:07][%cal Oa4a5]} Qf5 {[%emt 0:01:17]} (26... e5 $14) 27. Qe3 $18 {[%emt 0:01:06][%csl LRb6,LRh6]} b5 {[%emt 0:02:33]} (27... e5 $142 28. Qxb6 (28. Qxh6 Re6 $16) 28... Qe6) 28. cxb5 {[%emt 0:01:01]} ({Less strong is} 28. Qxh6 bxc4 29. Qe3 Ne7 $14) 28... axb5 {[%emt 0:00:02] Black is weak on the dark squares} 29. g4 {[%emt 0:03:27]} ({Not} 29. Qxh6 bxa4 30. Qe3 e5 $11) 29... Qg5 {[%emt 0:02:46]} 30. Qxg5 {[%emt 0:01:44]} hxg5 {[%emt 0:00:01]} 31. axb5 {[%emt 0:00:04]} Nd8 {[%emt 0:00:53]} (31... Ne7 32. b6 Nd5) 32. Rc1 {[%emt 0:00:49]} Nb7 {[%emt 0:00:22]} 33. Be5 {[%emt 0:00:38]} Kf8 {[%emt 0:00:52]} 34. Rc6 {[%emt 0:01:29]} Rcd8 {[%emt 0:01:53]} 35. Rb6 {[%emt 0:01:59]} Rd7 {[%emt 0:00:32]} (35... Rd5 {might work better.} 36. Bc7 Nd8) 36. Ra1 {[%emt 0:00:45]} Rc8 {[%emt 0:01:38]} 37. Bf6 {[%emt 0:01:22][%cal Oa1a7] Black must now prevent Ra7!} Ke8 {[%emt 0:02:10]} 38. Bxg5 {[%emt 0:00:08]} Nd6 {[%emt 0:00:55]} 39. Bf4 {[%emt 0:00:57]} Ke7 {[%emt 0:01:24]} (39... Rcd8 $142 40. Bg5 Rc8) 40. Rd1 {[%emt 0:02:19]} Nc4 {[%emt 0:01:40]} 41. Rxd7+ {[%emt 0:30:22]} Kxd7 {[%emt 0:30:07][%mdl 4096] Endgame. KRB-KRN} 42. Rb7+ {[%emt 0:00:40]} Ke8 {[%emt 0:00:09]} 43. h4 {[%emt 0:00:00]} e5 {[%emt 0:00:00]} 44. Bg5 {[%emt 0:00:00]} Kf8 {[%emt 0:00:00]} (44... Nd6 $142) 45. Be7+ {[%emt 0:00:00]} Kg7 {[%emt 0:00:00]} 46. b6 {[%emt 0:00:00][%cal Bb5b6,Bb6b7][%mdl 32]} Re8 {[%emt 0:00:00]} 47. Bc5 {[%emt 0:00:00]} Re6 {[%emt 0:00:00]} 48. Rb8 {[%emt 0:00:00] White threatens b7 and mate.} Rc6 {[%emt 0:00:00]} 49. b7 {[%emt 0:00:00]} Rc7 {[%emt 0:00:00] [#]} 50. Rg8+ $3 {[%emt 0:00:00][%mdl 512] Weighted Error Value: White=0.12 (very precise) /Black=0.29 (precise) .  Mistake:       	White=1     	Black=6      Inaccurate:     	White=1     	Black=2      OK:         	White=21    	Black=14     Best:        	White=1     	Black=1} 1-0

[Event "British Championship 2024"]
[Site "Hull"]
[Date "2024.07.31"]
[Round "5.6"]
[White "Kanyamarala, Tarun"]
[Black "Han, Yichen"]
[Result "1/2-1/2"]
[Annotator "TA"]
[ECO "D38"]
[WhiteElo "2333"]
[BlackElo "2414"]
[PlyCount "39"]
[EventDate "2024.07.31"]
[EventCountry "GBR"]
[SourceTitle "playchess.com"]
[Source "ChessBase"]
[SourceQuality "1"]
[TimeControl "40/5400+30:1800+30"]

{[%evp 12,39,25,12,35,24,26,29,22,14,14,28,15,10,39,35,51,51,47,0,0,0,7,0,-15,-30,-11,-29,-21,-17]} 1. d4 {[%emt 0:00:04]} d5 {[%emt 0:00:03]} 2. c4 {[%emt 0:00:09]} e6 {[%emt 0:00:05]} 3. Nc3 {[%emt 0:00:12]} Bb4 {[%emt 0:00:07]} 4. cxd5 {[%emt 0:00:39]} exd5 {[%emt 0:00:06]} 5. Nf3 {[%emt 0:00:12]} Nf6 {[%emt 0:00:49]} 6. Bg5 {[%emt 0:00:17]} h6 {[%emt 0:02:23]} 7. Bh4 {[%emt 0:00:11]} Nbd7 {[%emt 0:05:55][%cal Bb8d7,Bd7f6,Bf6g4][%mdl 32]} 8. e3 {[%emt 0:03:29]} g5 {[%emt 0:00:56]} 9. Bg3 {[%emt 0:00:15]} Ne4 {[%emt 0:00:29] White has an edge.} 10. Nd2 {[%emt 0:02:58] Ndxe4 is the strong threat.} Nxg3 {[%emt 0:09:46]} 11. hxg3 {[%emt 0:00:08]} c6 {[%emt 0:00:53]} 12. Bd3 {[%emt 0:03:26]} Nf6 {[%emt 0:02:01]} 13. Qc2 {[%emt 0:00:52]} Be6 {[%emt 0:03:30]} 14. Nf3 {[%emt 0:04:23]} Ng4 {[%emt 0:10:13]} 15. Bf5 {[%emt 0:09:51]} (15. a3 $14 Bd6 16. e4) 15... Bxf5 {[%emt 0:04:30]} 16. Qxf5 {[%emt 0:00:11]} Qd7 {[%emt 0:00:55]} 17. Qxd7+ {[%emt 0:02:36]} Kxd7 {[%emt 0:00:08]} 18. Nh2 {[%emt 0:02:20]} Nf6 {[%emt 0:02:06]} 19. Ke2 {[%emt 0:02:44]} a5 {[%emt 0:11:14]} 20. Nf3 {[%emt 0:02:04] Weighted Error Value: White=0.08 (flawless) /Black=0.06 (flawless) .  Mistake:       	White=1     	---        Inaccurate:     	---       	Black=1      OK:         	White=6     	Black=6      Best:        	---       	Black=1} 1/2-1/2

[Event "British Championship 2024"]
[Site "Hull"]
[Date "2024.07.31"]
[Round "5.7"]
[White "Gasanov, Eldar"]
[Black "Hebden, Mark L"]
[Result "1-0"]
[Annotator "TA"]
[ECO "E70"]
[WhiteElo "2469"]
[BlackElo "2398"]
[PlyCount "65"]
[EventDate "2024.07.31"]
[EventCountry "GBR"]
[SourceTitle "playchess.com"]
[Source "ChessBase"]
[SourceQuality "1"]
[TimeControl "40/5400+30:1800+30"]

{[%evp 9,65,41,31,23,40,42,39,26,24,31,49,39,54,53,68,26,72,41,75,21,17,16,15,15,33,17,79,53,75,36,61,58,71,71,62,68,89,75,140,144,218,187,418,413,415,404,552,587,682,574,1110,1094,1854,1813,29983,29984,29988,29989]} 1. d4 {[%emt 0:00:16]} Nf6 {[%emt 0:00:13]} 2. c4 {[%emt 0:00:20]} g6 {[%emt 0:00:12]} 3. Nc3 {[%emt 0:00:22]} Bg7 {[%emt 0:00:07]} 4. e4 {[%emt 0:00:26]} d6 {[%emt 0:00:36]} 5. Nge2 {[%emt 0:00:53]} a6 {[%emt 0:03:03]} 6. Ng3 {[%emt 0:02:45]} h5 {[%emt 0:01:38][%cal Bh7h5,Bh5h4][%mdl 32]} 7. Be2 {[%emt 0:00:52]} Nbd7 {[%emt 0:02:07]} 8. f4 {[%emt 0:15:39] White is slightly better.} h4 {[%emt 0:01:50]} 9. Nf1 {[%emt 0:02:09]} e5 {[%emt 0:05:23]} 10. fxe5 {[%emt 0:02:59]} dxe5 {[%emt 0:00:14]} 11. d5 {[%emt 0:00:13]} Nc5 {[%emt 0:03:40]} 12. Qc2 {[%emt 0:06:36]} a5 {[%emt 0:04:27]} (12... h3 $11 {is more appropriate.} 13. g3 c6) 13. Be3 {[%emt 0:04:25]} b6 {[%emt 0:00:26]} 14. Nd2 {[%emt 0:05:46]} ({Better is} 14. h3 $16) 14... h3 $11 {[%emt 0:03:29]} 15. g3 {[%emt 0:01:08]} Ng4 {[%emt 0:00:45]} 16. Bxg4 {[%emt 0:06:47]} Bxg4 {[%emt 0:00:08]} 17. Nd1 {[%emt 0:00:43]} Bh6 {[%emt 0:03:00]} (17... O-O $11) 18. Qc3 {[%emt 0:03:17]} Qe7 {[%emt 0:13:44]} 19. Nf2 {[%emt 0:04:01]} Na4 {[%emt 0:03:21]} 20. Qb3 {[%emt 0:01:33]} Bd7 {[%emt 0:01:02]} 21. Bxh6 {[%emt 0:01:11]} Rxh6 {[%emt 0:00:10]} 22. Qe3 {[%emt 0:00:22]} Rh5 {[%emt 0:02:40]} 23. Nd3 {[%emt 0:01:49]} Bg4 {[%emt 0:05:53]} ({Black should try} 23... Nc5) 24. O-O $16 {[%emt 0:09:00][%cal Bh1f1,Bf1f2,Bf2f6][%mdl 32]} Rd8 {[%emt 0:19:38]} (24... Nc5 $16) 25. Rf2 $18 {[%emt 0:06:07]} c6 $2 {[%emt 0:04:55]} (25... Kf8 {was called for.} 26. Raf1 Rh7) 26. Raf1 {[%emt 0:03:52] Rxf7 would now be deadly.} ({Inferior is} 26. dxc6 Qd6 27. b3 Qxd3 $15) 26... Rh7 {[%emt 0:01:25]} 27. Rf6 {[%emt 0:03:41]} ({Less strong is} 27. dxc6 Rc8 $16 (27... Qd6 $2 28. Nf3 $18)) 27... cxd5 {[%emt 0:01:25]} 28. exd5 {[%emt 0:01:11][%cal Od2e4,Be4d5,Bd5e6,Be6f7][%mdl 32] Hoping for Ne4!} Bf5 {[%emt 0:03:01]} 29. Nxe5 {[%emt 0:04:36]} Nxb2 {[%emt 0:16:28] [#]} 30. Re1 $1 {[%emt 0:03:36]} Be6 {[%emt 0:00:00]} (30... Na4 31. Nc6) 31. dxe6 {[%emt 0:06:12]} Qxf6 {[%emt 0:00:00]} 32. exf7+ {[%emt 0:00:18]} Kf8 {[%emt 0:00:00] [#]} 33. Nd7+ $1 {[%emt 0:01:22][%mdl 512] Weighted Error Value: White=0.17 (very precise) /Black=0.55.  Mistake:       	White=1     	Black=5      Inaccurate:     	White=4     	Black=4      OK:         	White=12    	Black=5      Best:        	White=2     	Black=1} 1-0

[Event "British Championship 2024"]
[Site "Hull"]
[Date "2024.07.31"]
[Round "5.8"]
[White "McShane, Luke J"]
[Black "Eggleston, David J"]
[Result "1-0"]
[Annotator "TA"]
[ECO "B90"]
[WhiteElo "2617"]
[BlackElo "2335"]
[PlyCount "128"]
[EventDate "2024.07.31"]
[EventCountry "GBR"]
[SourceTitle "playchess.com"]
[Source "ChessBase"]
[SourceQuality "1"]
[TimeControl "40/5400+30:1800+30"]

{[%evp 49,128,84,90,83,87,87,141,98,178,98,182,98,172,80,165,75,151,75,135,77,139,87,141,75,106,106,106,106,106,106,176,106,106,105,184,94,189,187,189,172,177,139,125,0,159,109,135,102,200,184,365,364,345,356,374,318,595,615,558,497,398,359,373,293,347,360,343,359,336,317,392,351,503,463,538,514,524,476,1295,1205,1071]} 1. e4 {[%emt 0:03:33]} c5 {[%emt 0:00:06]} 2. Nf3 {[%emt 0:00:11]} d6 {[%emt 0:00:05]} 3. d4 {[%emt 0:00:05]} Nf6 {[%emt 0:00:11]} 4. Nc3 {[%emt 0:00:08]} cxd4 {[%emt 0:00:14]} 5. Nxd4 {[%emt 0:00:14]} a6 {[%emt 0:00:08]} 6. Be3 {[%emt 0:00:05]} e5 {[%emt 0:00:53]} 7. Nf3 {[%emt 0:00:04]} Be7 {[%emt 0:01:23]} 8. Bc4 {[%emt 0:00:05]} O-O {[%emt 0:00:32]} 9. O-O {[%emt 0:00:13]} Be6 {[%emt 0:01:16]} 10. Bb3 {[%emt 0:00:05]} Nc6 {[%emt 0:00:59]} 11. Qe2 {[%emt 0:00:05]} Rc8 {[%emt 0:05:35]} 12. Rfd1 {[%emt 0:03:19]} Qc7 {[%emt 0:09:44]} 13. Bg5 {[%emt 0:38:33]} Bg4 {[%emt 0:17:24]} 14. Bxf6 {[%emt 0:02:42]} Bxf6 {[%emt 0:03:50]} 15. Nd5 {[%emt 0:00:11]} Qd8 {[%emt 0:00:09]} 16. c3 {[%emt 0:00:10]} Bg5 {[%emt 0:01:45]} 17. Rd3 {[%emt 0:04:42]} Kh8 {[%emt 0:07:10]} 18. h3 {[%emt 0:01:03]} Bxf3 {[%emt 0:07:40]} 19. Qxf3 {[%emt 0:04:24]} Ne7 {[%emt 0:01:20]} 20. Rad1 {[%emt 0:04:49]} Nxd5 {[%emt 0:01:13]} 21. Rxd5 {[%emt 0:00:11]} Be7 {[%emt 0:00:19]} 22. Rxe5 {[%emt 0:21:40]} dxe5 {[%emt 0:00:42]} 23. Rxd8 {[%emt 0:00:04]} Rcxd8 {[%emt 0:03:38]} 24. Qh5 {[%emt 0:00:04]} Bd6 {[%emt 0:13:51]} 25. h4 {[%emt 0:05:15]} Rd7 {[%emt 0:02:49]} 26. Qf5 {[%emt 0:02:05]} Re7 {[%emt 0:05:20]} 27. h5 {[%emt 0:00:06]} f6 {[%emt 0:04:22]} (27... h6 $142 28. g4 Bc5) 28. Bd5 {[%emt 0:00:36]} b5 {[%emt 0:01:03]} (28... h6 $16 29. Qf3 Rb8) 29. a3 {[%emt 0:00:06]} (29. h6 $1 $18) 29... Bb8 {[%emt 0:00:53]} (29... h6 $16 {might work better.} 30. Be6 a5) 30. Kf1 {[%emt 0:00:22]} (30. h6 $1 $18) 30... Ba7 {[%emt 0:01:59]} (30... h6 $16 31. Qg4 Rfe8) 31. Ke2 {[%emt 0:00:04]} (31. h6 $1 $18 {is more deadly.}) 31... Bb6 {[%emt 0:00:22]} (31... h6 $16 32. Be6 a5) 32. Kd3 {[%emt 0:00:05]} (32. h6 $1 $18) 32... Ba7 {[%emt 0:00:31]} ({Black should try} 32... h6 33. Kc2 a5) 33. Kc2 {[%emt 0:00:05]} (33. h6 $142 $1) 33... Bb6 {[%emt 0:03:41]} (33... h6 $142 34. Kb3 Bc5) 34. Kb3 {[%emt 0:00:08]} (34. h6 $142) 34... Bc5 {[%emt 0:01:21]} (34... h6 $142 35. Qf3 Ba7) 35. Ka2 {[%emt 0:00:04]} (35. h6 $142 $1) 35... Bb6 {[%emt 0:00:40]} (35... h6 $142 36. Kb3 Rd8) 36. Be6 {[%emt 0:05:08]} ({Better is} 36. h6 $1) 36... Bxf2 {[%emt 0:02:53]} 37. Bc8 {[%emt 0:00:34]} a5 {[%emt 0:00:15] [#]} 38. Ba6 $1 {[%emt 0:00:16]} Be3 {[%emt 0:00:24]} 39. Bxb5 {[%emt 0:00:20]} Rd8 {[%emt 0:01:09]} (39... Rb7 $16 40. Bc6 Rc7) 40. Bc6 {[%emt 0:01:34]} (40. Qf3 $18 Bc1 41. Qf1) 40... Rc7 {[%emt 0:00:51]} 41. Bd5 {[%emt 0:33:20]} Rb8 {[%emt 0:31:01]} (41... h6 $16 42. Qf3 Bc5) 42. Qf1 {[%emt 0:00:00]} (42. Qf3 $18 Bc5 43. Qg3) 42... Rb6 {[%emt 0:00:00]} (42... h6 $16 43. Qd3 Bg1) 43. Qe1 {[%emt 0:00:00]} Bc5 {[%emt 0:00:00]} 44. Qd1 {[%emt 0:00:00]} Rb8 {[%emt 0:00:00]} 45. Qa4 {[%emt 0:00:00]} Be3 {[%emt 0:00:00]} 46. Qd1 {[%emt 0:00:00]} (46. Qxa5 $2 {too greedy.} Ra7 $19) 46... Bc5 $1 {[%emt 0:00:00] [#]} 47. Qd3 {[%emt 0:00:00]} ({White should play} 47. h6 $1) 47... Ra7 {[%emt 0:00:00]} 48. Qh3 {[%emt 0:00:00]} Re7 {[%emt 0:00:00]} (48... h6 $16 49. Qd3 Rc7) 49. h6 {[%emt 0:00:00]} g6 $2 {[%emt 0:00:00]} (49... Ra7 50. Qe6 Be7 51. hxg7+ (51. Qf7 gxh6 52. b3 Rc7 $16) 51... Kxg7) 50. Qf3 {[%emt 0:00:00]} Rf8 {[%emt 0:00:00]} 51. g4 {[%emt 0:00:00]} Ra7 {[%emt 0:00:00]} 52. Qd3 {[%emt 0:00:13]} Rb8 $2 {[%emt 0:00:00]} (52... Re7 53. Qb5 Bg1) 53. Qf1 {[%emt 0:00:56]} Rf8 {[%emt 0:00:00]} 54. Qb5 {[%emt 0:01:29]} Be3 {[%emt 0:00:00]} 55. a4 {[%emt 0:00:35]} Rc8 {[%emt 0:00:03]} 56. Be6 {[%emt 0:00:40]} Rd8 {[%emt 0:00:38]} 57. Qc6 {[%emt 0:01:07]} Rf8 {[%emt 0:01:07]} 58. Bd5 {[%emt 0:00:32]} Re7 {[%emt 0:01:16]} 59. Qa6 {[%emt 0:01:01]} Bxh6 {[%emt 0:02:15]} 60. Qxa5 {[%emt 0:00:04]} f5 {[%emt 0:00:33]} (60... Ree8 {was necessary.} 61. b4 Bg5) 61. gxf5 $18 {[%emt 0:03:10]} gxf5 {[%emt 0:00:01]} 62. exf5 {[%emt 0:00:55]} Rxf5 {[%emt 0:03:11]} 63. Be4 {[%emt 0:00:10]} Rf2 {[%emt 0:00:53]} (63... Rff7 $142 64. Qc5 Bg5) 64. Qb6 $18 {[%emt 0:00:53]} Rf4 {[%emt 0:02:52]} 1-0

[Event "British Championship 2024"]
[Site "Hull"]
[Date "2024.07.31"]
[Round "5.9"]
[White "Ledger, Andrew J"]
[Black "Grieve, Harry"]
[Result "1/2-1/2"]
[Annotator "TA"]
[ECO "E04"]
[WhiteElo "2334"]
[BlackElo "2470"]
[PlyCount "71"]
[EventDate "2024.07.31"]
[EventCountry "GBR"]
[SourceTitle "playchess.com"]
[Source "ChessBase"]
[SourceQuality "1"]
[TimeControl "40/5400+30:1800+30"]

{[%evp 11,71,15,26,15,18,21,11,13,60,59,44,44,59,39,45,29,26,15,25,6,23,23,9,0,0,0,0,0,0,0,0,0,8,0,22,0,0,0,0,0,0,0,0,0,0,0,0,0,0,0,0,0,0,0,0,0,0,0,0,0,0,0]} 1. c4 {[%emt 0:00:03]} e6 {[%emt 0:00:04]} 2. Nf3 {[%emt 0:00:16]} d5 {[%emt 0:00:14]} 3. d4 {[%emt 0:00:28]} Nf6 {[%emt 0:00:07]} 4. g3 {[%emt 0:00:19]} dxc4 {[%emt 0:00:20]} 5. Bg2 {[%emt 0:00:08]} Bb4+ {[%emt 0:00:12]} 6. Bd2 {[%emt 0:00:33]} a5 {[%emt 0:00:12]} 7. Qc2 {[%emt 0:03:19]} Bxd2+ {[%emt 0:00:17]} 8. Qxd2 {[%emt 0:02:24]} c6 {[%emt 0:00:22]} 9. a4 {[%emt 0:03:20]} b5 {[%emt 0:00:20]} (9... Ne4 $11 {is more appropriate.} 10. Qf4 Qb6) 10. axb5 $1 $14 {[%emt 0:07:00]} cxb5 {[%emt 0:00:02]} 11. Qg5 $1 {[%emt 0:00:54][%csl LRb5,LRg7]} O-O {[%emt 0:00:09]} 12. Qxb5 {[%emt 0:00:25][%cal Oe1g1]} Ba6 {[%emt 0:00:07]} 13. Qxa5 {[%emt 0:13:29]} (13. Rxa5 $2 {is the wrong capture.} Bxb5 14. Rxa8 Bc6 $19) 13... Bb7 $1 {[%emt 0:00:07]} 14. Qxd8 {[%emt 0:00:40]} Rxa1 {[%emt 0:00:06] [#]} 15. Qxf8+ {[%emt 0:03:17]} Kxf8 {[%emt 0:00:18]} 16. O-O {[%emt 0:00:08] Hoping for Ne5.} Ra2 {[%emt 0:00:11]} 17. Nc3 {[%emt 0:20:42] The position is equal.} Rxb2 {[%emt 0:00:06]} 18. Rc1 {[%emt 0:00:37]} Nbd7 {[%emt 0:04:30]} 19. Ne5 {[%emt 0:04:09]} Nxe5 {[%emt 0:04:23]} 20. Bxb7 {[%emt 0:04:08]} Rxb7 {[%emt 0:02:51]} 21. dxe5 $11 {[%emt 0:00:07][%mdl 4096] Endgame. KRN-KRN} Ng4 {[%emt 0:21:31]} 22. f4 {[%emt 0:02:26]} Rb3 {[%emt 0:00:06]} 23. Nd1 {[%emt 0:08:04]} g5 {[%emt 0:01:30]} 24. Kg2 {[%emt 0:00:46]} (24. Rxc4 $2 {too greedy.} Rb1 25. Kg2 Rxd1 $19) 24... gxf4 {[%emt 0:03:10]} 25. gxf4 {[%emt 0:00:50]} Kg7 {[%emt 0:15:35]} 26. h3 {[%emt 0:04:30]} Ne3+ {[%emt 0:00:10]} 27. Nxe3 {[%emt 0:00:10]} Rxe3 {[%emt 0:00:01] KR-KR} 28. Kf2 {[%emt 0:06:16]} Rxh3 {[%emt 0:00:38]} 29. Rxc4 {[%emt 0:00:05]} h5 {[%emt 0:09:45]} 30. e4 {[%emt 0:00:56]} Ra3 {[%emt 0:02:27]} 31. Rc7 {[%emt 0:02:22]} Kg6 {[%emt 0:05:27]} 32. f5+ {[%emt 0:00:34]} exf5 {[%emt 0:00:07]} 33. exf5+ {[%emt 0:00:03]} Kxf5 {[%emt 0:00:08]} 34. Rxf7+ {[%emt 0:00:05]} Kxe5 {[%emt 0:00:04]} 35. Rh7 {[%emt 0:00:08]} Kf4 {[%emt 0:00:30]} 36. Rxh5 {[%emt 0:00:08] Weighted Error Value: White=0.03 (flawless) /Black=0.03 (flawless) .  Mistake:       	---       	Black=1      OK:         	White=18    	Black=14     Best:        	White=2     	Black=2      Strong:       	White=1     	Black=1      Brilliant:      	White=1     	---} 1/2-1/2